{"text_format":"2","workbook":"xlsx","n_sheets":1,"sheets":["BOQ"],"not_rendered":{"charts":0,"images":0,"macros":0,"external_links":0,"defined_names":1,"comments":0,"pivot_tables":0},"unopened":[],"bounds":{"document_bytes":16777216,"sheet_cells":100000,"run_cost":"one","rows_first":2000,"rows_last":500,"rows_between":2000,"halvings":0,"cell_chars":16384,"cell_head_chars":4096},"cells_cut":0,"cells_raw":0,"read":"whole","date_system":"1900"}

{"sheet":"BOQ","index":0,"n_rows":144,"n_cols":6,"rows_kept":144,"cut":false,"hidden":false,"merged":[[0,0,0,5],[2,1,2,5],[3,1,3,5],[4,1,4,5],[5,1,5,5],[1,1,1,4],[130,1,130,4],[90,0,92,0],[8,1,8,5],[6,1,6,5],[7,1,7,5],[25,0,29,0],[57,2,57,5],[57,0,61,0],[73,1,73,5],[9,1,9,5],[44,0,48,0],[44,2,44,5]]}
["Extension of AlSenia main PHC in Baiji / Salah Aldin governorate"]
[null,"Bill of quantity"]
[null,"General Specification "]
[1,"All works and the materials supplied by the contractor must be in according with the relevant Iraq's standard Specifications ( It’s the contractor responsibility to obtain any relevant Iraqi specifications by visiting ministry of construction and housing web site: www.moch.gov.iq (or physically obtain those documents from the mentioned ministry) in addition to Iraqi technical specification for building works."]
[2,"The contractor must provide samples, mockup, catalogues for testing / inspection and approval by the site engineer."]
[3,"Contractor must pay the cost for samples including any laboratory tests, both inside and outside the country as required."]
[4,"The price of works includes all job requirements as per Iraq's standard specification."]
[5," The contractor must provide PPE (Personal Protective Equipment) for all labors, personnel, engineers and possible visitors to the site"]
[6,"All the works must be done according to the site engineer instructions & all required works to complete job should be included within the price "]
[7,"The contractor is responsible for repairing any damaged occurred during his works."]
[8,"The contractor must apply measures safety and COVID-19."]
["#","Item Description","Unit","Qty","Price$","Total $"]
["A","CIVIL WORKS"]
[1,"Site preparation:تهيئة الموقع \nSupply of materials, tools, machineries and manpower for site preparationwith dimension (25x17)m. The work includes :     \n1-Clearing, stripping and levelling of the site.\n2-Removing undesired plants and other natural vegetation.    \n3-Removing all the concrete walkways, etc.      \n4-Dumping of all the debris and rubble to a site approved by the local authorities.      \n All needed work to complete the job will be included within the price.","LS ",1,null,{"$f":"E14*D14","v":0}]
[2,"Excavation Works:أعمال الحفريات \nExcavation is starting at the existing ground level down to the required depth (1)m vertically and allows the use of side wood molds for foundation aspects approved by the engineer and according to the enclosed drawings, removal of all material to a site approved by local authorities. The price includes cleaning the bed of the excavation, compaction using compactor roller and back-filling. All needed work to complete the job will be included within the price.","M3",550,null,{"$f":"D15*E15","v":0}]
[3,"Chloride Spraying:  رش المبيدات                                                                                                     Supply of materials, tools and manpower for spraying of chloride material against the earth's insect and the approved establishment of the dirt floor and all subsequent dictation layers. All needed work to complete the job will be included within the price.","L.S.",1,null,0]
[4,"Filling works for the foundation:اعمال الردم تحت الاساس \nSupply of materials, tools, and manpower for filling (in layers not exceeding 25cm, including compaction up to 95% of MDD) with sub base (type C) under the foundation layer. All needed work to complete the job will be included within the price..","M3",400,null,0]
[5,"Filling works Inside the building:اعمال الردم داخل البناية \nSupply of materials, tools and manpower for filling (in layers not exceeding 15cm, including compaction up to 95% of MDD) with sub base (type C) up to DPC level inside the building. The price includes laying one layer of polyethylene sheet 250 microns. All needed work to complete the job will be included within the price.\n","M3",385,null,0]
[6,"Filling works within the walkways:اعمال الردم للمماشي  \nSupply of materials, tools and manpower for filling (in layers not exceeding 25cm, including compaction up to 95% of MDD) with sub base (type C) up to 15cm.below the DPC level for the area within the walkways around the building. All needed work to complete the job will be included within the price.","M3",85,null,0]
[7,"Filling (with river sand) works:اعمال الردم (رمل النهر)\nSupply of materials, tools, and manpower for filling with river sand below the level of the walkways within the area inside the fence. The price includes planting trees roses.  All needed work to complete the job will be included within the price.","M3",100,null,0]
[8,"Blinding (Lean) Concrete Under Foundation:صب طبقه خرسانه تحت الاساس \nSupply of materials, tools, and manpower to cast (10)cm plain concrete for blinding under the foundations using concrete (C20Mpa) and sulfate resistant cement, and laying one layer of polyethylene sheet 1mm. (The polyethylene sheet should also cover the sides of excavation walls and extend on land for 50cm to both sides of excavation). All needed work to complete the job will be included within the price.","M2",230,null,0]
[9,"Plain Concrete for Walkways Foundation:صب اساس للمماشي                                                      Supply materials, tools and manpower for casting(20x 30)cm plain concrete(C25MPa) using sulfate resistant cement for the foundations of walkways. All needed work to complete the job will be included within the price. See attached drawing.","M3",11,null,0]
[10,"Plain Concrete for Walkways:صب خرسانه للمماشي \nSupply of materials, tools and manpower for casting (15cm ) plain concrete (C25MPa) using sulphate resistance cement for walkways. The work includes all the requirements of concrete covers and formworks and expansion joints every 4m2. All needed works to complete the job will be included within the price.","M2",120,null,0]
[11,"Reinforced Concrete Wall Footing (WxH =0.6x1)m:صب الخرسانة المسلحة للأساس\nSupply of materials, tools and manpower for casting reinforced concrete wall footing(60×100)cm. using concrete (C25MPa) and sulphate resistance cement. The work includes all the requirements of steel reinforcement, concrete covers and formworks(using plywood ). All needed works to complete the job will be included within the price. See attached drawing.","M3",105,null,0]
[12,"DPC plain concrete:صب طبقة البادلو\nSupply of materials, tools and manpower to cast plain concrete (depth 15cm) and (C25MPa) for DPC, using sulphate resistant cement and water proofing agents. All needed work to complete the job will be included within the price. ","M.L",175,null,0]
[13,"Reinforced Concrete slab, beams, elevator walls, lintel and staircase:                                                                                                                    أعمال صب الخرسانة المسلحة للبناية \nSupply of materials, tools and manpower for casting reinforced concrete slab, beam, lintel,  and staircase using concrete (C25MPa). The work includes all the requirements of steel reinforcement, concrete covers and formworks. All needed works to complete the job will be included within the price. See attached drawing."]
[null,"A- Casting of reinforced concrete for beams and lintels for all parts of the building,  See attached drawing.","M3",130,null,0]
[null,"B-  Casting of reinforced concrete for slab of ground & first floor, See attached drawing.","M3",135,null,0]
[null,"C- Casting of reinforced concrete elevator walls, See attached drawing.","M3",20,null,0]
[null,"D- Casting of reinforced concrete stair, See attached drawing.","M3",10,null,0]
[14,"Concrete works under tiles:صب خرسانة للأرضيات تحت الكاشي \nSupply of materials, tools and manpower to cast concrete for under floors using concrete class (C21 Mpa), min.10 cm thickness, using cement- resistant salts. Including polyethylene sheet laying, leveling and curing. All needed works to complete the job will be included within the price.","M2",300,null,0]
[15,"Concrete floors under tiles:صب خرسانة للأرضيات   \nSupply of materials, tools and manpower to cast plain concrete (C21MPa) for floors, 10cm thickness using sulphate resistant cement.  Including polyethylene sheet laying, leveling and curing. All needed works to complete the job will be included within the price.","M2",165,null,0]
[16,"Brick Masonry works under DPC level:البناء بالطابوق تحت مستوى البادلو \nSupply of materials, tools and manpower to build the walls under D.P.C level with brick (24×12×7.5)cm, and cement-sand mortar (1:3). The work includes(24,36,48,60)cm. wall width as per attached drawings. The work includes plastering both sides of the walls with cement sand mortar (1:3), applying bitumen layer on any buried parts (foundation and walls).  The wall should be levelled vertically and horizontally. All needed works to complete the job will be included within the price. ","M3",42,null,0]
[17,"Brick Masonry works above DPC level:البناء بالطابوق فوق مستوى البادلو \nSupply of materials, tools and manpower to build walls above DPC level (24)cm width using brick (24×12×7.5) cm with cement sand mortar (1:3).  The wall should be levelled vertically and horizontally.  All needed works to complete the job will be included within the price. ","M3",250,null,0]
[18,"Block Masonry works under DPC level: البناء بالبلوك تحت مستوى البادلو للمماشي \nSupply of materials, tools, and manpower to build the way walk walls under D.P.C level with solid concrete blocks (15x20x40) cm, and cement-sand mortar (1:3). The work includes plastering both sides of the walls with cement sand mortar (1:3), applying a bitumen layer on any buried parts (foundation and walls). The wall should be levelled vertically and horizontally. All needed works to complete the job will be included within the price. ","M3",12,null,{"$f":"D35*E35","v":0}]
[19,"Parapet:  اعمال البناء للستارة \nSupply of materials, tools and manpower to build parapet wall using brick (24×12×7.5)cm high (1.3m). and cement sand mortar (1:3). All needed works to complete the job will be included within the price. \n","M3",20,null,{"$f":"D36*E36","v":0}]
[20,"Roofing system:تطبيق السقف بالشتايكر \nSupply of materials, tools and manpower to provide the roofing layers as follows(applying water-proofing flint coats, two layers of bitumen felt 4mm, Nylon layer, water-proofing flint coats, spreading sand river of 7cm.minimum thickness, laying of compressed Styrofoam 5cm (density 40 kg/m3) and applying the concrete roof tiles ( 80×80×4)cm., refilling the joints with mastic and giving the slope for water drainage. The price includes construction of concrete skirting(C20) around the surface. All needed work to complete the job will be included within the price. See attached drawing.","M2",330,null,{"$f":"D37*E37","v":0}]
[21,"Plastic Suspended Ceiling :السقوف الثانوية البلاستيكية \nSupply of materials, tools and manpower to install plastic suspended ceiling for the W.C. 60x60 cm, 10mm thickness, by using necessary accessories L, T sections, hold down clips, galvanized steel rod 5mm (1.2x1.2m) for fixing with the ceiling by screws. All needed work to complete the job will be included within the price. See attached drawing.","M2",35,null,0]
[22,"Gypsum board Suspended Ceiling :السقوف الثانوية جبسن بورد \nSupply of materials, tools and manpower to install  gypsum board suspended ceiling 60x60 cm, 10mm thickness, by using necessary accessories L, T sections, hold down clips, galvanized steel rod 5mm (1.2x1.2m) for fixing with the ceiling by screws. All needed work to complete the job will be included within the price. See attached drawing.","M2",520,null,0]
[23,"Gypsum Plastering For New Walls:البياض بالجص \nSupply of materials, tools and manpower for gypsum plastering with 20mm thickness smooth-finished for internal walls and ceilings using aluminum straight edges every 60-70cm.. The price includes one layer of cement splash dash under gypsum plastering with cement-sand mortar. All needed works to complete the job will be included within the price.","M2",1300,null,0]
[24,"Anti-bacteria galvanized metal suspended ceiling of Minor operation :سقف ثانوي غرفة العمليات \nSupply materials, tools and manpower to install suspended ceiling 60x60 cm  made of galvanized metal material and painted with anti-bacteria coat, 10mm thickness, by using necessary accessories L, T sections, hold down clips, galvanized steel rod 5mm (1.2x1.2m) for fixing with the ceiling by screws for the Minor operation halls. All needed work to complete the job will be included within the price.","M2",50,null,0]
[25,"Anti-bacteria epoxy layer::ايبوكسي للأرضيات \nSupply materials, tools and manpower to spread anti-bacteria epoxy layer for Minor operation floors with minimum thickness of 4 mm ,and add  protection layer thickness 0.2mm on it , the price includes spreading a primer coat. All needed works to complete the job will be included within the price.","M2",50,null,0]
[26,"Epoxy panting for internal walls:ايبوكسي للجدران \nSupply materials, tools and manpower to make an epoxy paint, wall smoothing with glass paper shall be included within the price, then applying a prime coat of emulsion and 2 layers of anti-bacteria after that with thickness not less than 0.5 mm, for all Minor operation. The job includes cleaning the walls, removing the dirt and dust, repairing all the cracks, and filling all the holes before painting. With making a curve of epoxy paste for Minor operation in the meeting of the wall's end and the floor with a minimum thickness of 4 mm around room circumference. All needed works to complete the job will be included within the price.","m2",100,null,0]
[27,"Cement Plastering For New Walls:اللبخ بالإسمنت والرمل  \nSupply of materials, tools and manpower for cement plastering with 20mm thickness smooth-finished for exterior walls using aluminum straight edges. The price includes three layers as follows: one layer of cement splash dash, one layer of rough (kafmal) and finally smooth finished cement plastering with cement-sand mortar. All needed works to complete the job will be included within the price.","M2",900,null,0]
[28,"Cladding frontage of building  :تغليف الواجهة \nSupply of materials, tools and manpower to install new cladding on the facade of the building using following materials  :"]
[null,"A-Cement Plastering with  plastic (silicon water proof) paint (Jotun, Betek, CAPAROL, Polisan, dyo or equivalent).","M2",85,null,{"$f":"D46*E46","v":0}]
[null,"B-Marble( Opium,Calistone,or equivalent)","M2",85,null,{"$f":"D47*E47","v":0}]
[null,"C-Muqarnas bricks.","M2",35,null,{"$f":"D48*E48","v":0}]
[null,"The work includes using Cement mortar ,L- section  steel angle  to fixing the marble with the wall  .The price includes dumping of all debris to a site approved by local authorities. All needed work to complete the job will be included within the price. See the attached drawing."]
[29,"Plastic painting:صبغ الجدران الخارجية \nSupply of materials, tools and manpower to paint the exterior walls and fence, with three layers of plastic (silicon water proof) paint (Jotun, Betek, CAPAROL, Polisan, dyo or equivalent). The paint should be diluted (10%--15%) with water to achieve the coverage of painting of not more than (10-12) m2/Liter/layer.  The job includes cleaning the walls, removing the dirt and dust, repairing all the cracks and filling all the holes before painting. All needed works to complete the job, shall be included within the price.","M2",835,null,0]
[30,"Emulsion painting:صبغ الجدران الداخلية \nSupply of materials, tools and manpower to paint the interior walls and ceilings, with 3 layers of emulsion painting (Jotun, Betek, CAPAROL, Polisan, dyo or equivalent). The paint should be diluted (10%--15%) with water to achieve the coverage of painting of not more than (10-12) m2/Liter/layer. The job includes cleaning the walls and ceilings, removing the dirt and dust, repairing all the cracks and filling all the holes before painting. All needed works to complete the job, shall be included within the price.","M2",1300,null,{"$f":"D51*E51","v":0}]
[31,"Natural Marble tiles for Floors: رخام للأرضيات \nSupply of materials, tools and manpower to apply Marble tiles( Opium,Calistone,or equivalent) for floors(thickness 2 cm) with appropriate size and color, using cement sand mortar(1:3), filling the joints with white cement with polishing by machine All needed work to complete the job will be included within the price.","M2",555,null,0]
[32,"Ceramic tiles for Walls high (1.2m) and (3m) for sanitary (W.C.) and laboratory:  سيراميك   للجدران       \nSupply of materials, tools, and manpower to apply ceramic tiles for walls (25x50)cm or any appropriate size .with thickness 6mm.using cement sand mortar(1:3), filling the joints with white cement paste for all walls of the sanitary (W.C.) and laboratory units. All needed work to complete the job will be included within the price..","M2",720,null,0]
[33,"Non Slip Ceramic tiles 30x30cm for floors:   سيراميك للأرضيات                                                     Supply of materials, tools and manpower to apply non slip ceramic tiles(30×30)cm for the toilet(W.C.) floors using cement mortar (1: 3).The price includes filling the joints with white cement paste and coating of floors with a moisture inhibitor with approved facilities.  All needed work to complete the job will be included within the price.","M2",35,null,0]
[34,"Marble steps(Tread and Riser) for stair:     بايات رخام للدرج     \nSupplying materials, tools and manpower to apply new Marble steps( Opium,Calistone,or equivalent),3 cm thick for the tread and 15 cm for the riser and with 30cm width and 1.2m length using cement mortar (1:3) and rounding the external edges, filling joints by white cement mortar. All needed work to complete the job will be included within the price.","NO.",53,null,0]
[35,"Steel Handrail:محجر درج حديد\nSupply of materials, tools, and manpower to install steel handrail  (height of 80cm) for staircases and openings, using steel tubes as per the drawing. The price includes adding steel a handle(7.5×5)cm and fixing with a handrail frame. The price includes painting the handrail frame by thermal painting. All needed work to complete the job will be included within the price. See attached drawing.","M.L",19,null,0]
[36,"PVC windows with Burglar:شبابيك بلاستك \nSupply of materials, tools, and manpower to install  PVC windows (frames of minimum 60 mm width). The price of works includes anti-insects wire mesh, handles, crystal clear glass 4mm thickness, and steel burglar for the windows using a 12mm square steel bar with CNC Engravings and the outer frame of the angle section 50x50x2mm. The price of works includes paint by use thermal painting. All needed work to complete the job will be included within the price. See attached drawing.","M2",52,null,0]
[37," MDF doors with frames doors:ابواب ام دي اف\nSupply materials, tools and manpower to install MDF doors: anti-bacteria and anti-wetness with frame , the price includes edges repairing around the frame,hinges,handles and locks. All needed works to complete the job will be included within the price. See attached drawing. "]
[null,"A-D1( 1×2.1) m","NO.",7,null,{"$f":"D59*E59","v":0}]
[null,"B-D3( 1.5×2.1 ) m(anti-bacterial)","NO.",1,null,{"$f":"D60*E60","v":0}]
[null,"C-D6(2×2.1) m","NO.",3,null,{"$f":"D61*E61","v":0}]
[]
[38,"PVC Doors with Frame(0.8x2.10m)D4:ابواب بلاستك \nSupply of materials, tools and manpower to install PVC doors with frame. The PVC section should be wide section. The lower 1.0m portion of the door to be covered by PVC sheets and the upper portion will be covered by frosted glass 6mm. The price includes hinges, handles, locks and frosted glass (6mm) . All needed works to complete the job, will be included within the price. See attached drawing.","NO.",8,null,{"$f":"D63*E63","v":0}]
[39,"Steel Door with the Frame(1.0x2.10m)D7:ابواب حديد\nSupply of materials, tools and manpower to install steel door with frame using steel tube 50x100x2mm , with steel plate gauge 18(1.41mm) on double face, using steel tube 40x40x2mm, including a layer of Styrofoam to be placed between the two faces, hinges, doors handles, locks and fixing a stopper on the floor or wall. The price of work includes the painting of steel door using thermal painting. All needed work to complete the job will be included within the price. See attached drawing.","NO.",3,null,{"$f":"D64*E64","v":0}]
[40,"Aluminum Door with Frame(2.0x2.10m) Double Leaves D2:ابواب الألمنيوم \nSupply of materials, tools and manpower to install aluminum doors with frame. The aluminum section should not be less than 50mm width. The lower 1.0m portion of the door to be covered by aluminum sheets and the upper portion will be covered by glass 6mm. The price includes hinges, handles, locks and frosted glass (6mm) . All needed works to complete the job, will be included within the price. See attached drawing.","NO.",2,null,0]
[41,"Stainless Steel Tempered Glass Door D5(2.25x2.20m) Double Leaves:ابواب زجاجية مع اطار استيل  \nSupply of materials, tools and manpower to install Stainless Steel Tempered Glass Door. The lower and upper portion will be covered by tempered glass (6mm clear tempered glass,12mm spacer,6mm clear tempered glass) or 8 tempered laminated glass ,with stainless steel frame  .The price includes hinges, handles, locks. All needed works to complete the job, will be included within the price.See attached drawing.\n","NO.",1,null,0]
[42,"Aluminum support handle:مقبض الالمنيوم\nSupply materials, tools and manpower to install Aluminum support handle fixed on the walls (50)mm diameter, 2mm thickness and fixed by aluminum support . All needed works to complete the job, will be included within the price","m.l",110,null,{"$f":"D67*E67","v":0}]
[43,"MDF Partitions :قواطع ام دي اف \nSupply of materials, tools and manpower for installing MDF partitions 18mm thickness, anti-bacteria and anti-wetness with frame with steel legs 25mm diameter, 50cm height. The price of works includes fixing on the walls. All needed work to complete the job will be included within the price.","m2",60,null,0]
[44,"Sliding Steel Door (2.0x4.0m) Two Leaves with small door (1.0x2.0m):     بوابه المشروع                    Supply of materials, tools and manpower to remove the damaged sliding steel door and removing the debris and rubble to a site approved by local authority, then install new slide steel door (two leaves), including plate gauge 18(1.41mm) on double faces, the gate has a frame of square steel pipe (75x75x3mm) and sub divider of pipe (50x50x3mm) @ 40cm c/c, slide steel frame U channel (84mm) top and bottom and making a small door within the gate (1x2m) with a frame of angle steel (75x75x3mm). The price of work shall include painting with anti-rust and 2 layers oil paint, rollers, door handles and locks. All needed works to complete the job, will be included within the price. See attached drawing.","NO.",1,null,0]
[45,"Main gate foundation and columns:اعمدة خرسانية لبوابه المشروع  \nSupply of materials, tools and manpower to cast reinforced concrete using (C30 Mpa) for foundations (0.8x0.8x0.40m) and columns (0.4x0.4x2.5m) for main gate. Including rebars, formworks and all requirements. All needed work to complete the job will be included within the price. See attached drawings","NO",2,null,0]
[46,"Billboard:لوحة دلاله للمشروع \nSupply of materials, tools and manpower to install billboard made of frame of size 3×1 m, including LED printed sticker. The frame shall be made of square pipe section 4x4cm. Price of the work shall include all requirements to complete the job.","NO.",1,null,0]
[47,"Room title board:لوحة دلاله للغرف \nSupply of materials and manpower to install room title name made of plastic sheet size 15x25 cm, using screws to fix. All needed work to complete the job will be included within the price.","NO.",20,null,0]
[null,"SUB TOTAL FOR CIVIL WORKS ",null,null,null,{"$f":"SUM(F59:F72,F46:F57,F27:F44,F14:F25)","v":0}]
["D","Generators room"]
[1,"Fuel Tank:خزان وقود\nSupply of materials, tools and manpower for installing Steel water tank of 2,000 liters. Rectangle shape and with plate gauge 18(1.41mm), supported by steel base made with 50mm (2\") angle shape, including the connection of the inlet and outlet pipes. The price of work includes all piping and fittings, valves, float valves, accessories. All needed work to complete the job will be included within the price.","NO.",1,null,{"$f":"D75*E75","v":0}]
[2,"Sun Shed (3.0×6.0)m with Concrete Floor :سقيفه للمولد\nSupply of materials, tools and manpower to install sun shed. The price includes:\n1-Excavation for the columns footing (60x60x60cm).\n2-Providing (4) anchor bolts of Ø16mm and length of (40cm) for each column.\n3-Providing base plate of (250x250x10mm) for each column.\n4-Casting column footing (60x60x60cm) using (C25MPa) concrete and sulphate resistance cement for each columns.\n5-Providing columns of steel square tube 100x100x3mm with height 3.2m(Spaced 3.0m in X-direction and 6.0m in Y-direction). \n6-Providing main beams of steel square tube 100x100x3mm.\n7-Providing purlin of rectangular steel tube 100x50x3mm and spaced 80cm. \n8-Corrugated metal sheet thickness 0.5mm, fixed by screws and overlapped in order to prevent water leakage.\n9-Painting the steel structure with one layer of anti rust and two layers of oil paint. \n10-Casting (15cm) thickness concrete with BRC (150x150x5mm) using (C25MPa) concrete and sulphate resistance cement for the sun shed floor.\nAll needed work to complete the job will be included within the price. See attached drawing.","M2",18,null,{"$f":"D76*E76","v":0}]
[3,"BRC Fence : سياج بي ار سي\nSupply of materials, tools and manpower to install a fence made of BRC(100x100x4)mm and 2.0m height and using steel angle (75x75x3)mm and (50x50x3)mm. All needed works to complete the job will be included within the price. See attached drawings","M.L.",18,null,{"$f":"D77*E77","v":0}]
[4,"Metal Doors for Generator Shed: باب حديد للسياج\nSupply of materials, tools and manpower to install steel doors (H2.0×W2.0m) by using BRC (50x50x4mm) and steel angle 75x75x3mm, 50x50x3mm and 38x38x2.5mm. The price of works includes door lock, handle, painting of steel door by using 2 layers anti-rust and 3 layers of oil painting. All needed works to complete the job will be included within the price. See attached drawing","NO.",1,null,{"$f":"D78*E78","v":0}]
[null,"SUB TOTAL FOR CIVIL WORKS (Generators room)",null,null,null,{"$f":"SUM(F75:F78)","v":0}]
["B","SANITARY WORKS"]
[1,"Water tank:خزان ماء \nSupply of materials, tools and manpower for installing galvanized water tank of 1250 liters. Cylindrical shape and with plate gauge 16(1.56mm), supported by steel base made with 50mm (2\") angle shape, including the connection of the inlet and outlet pipes. The price of work includes all piping and fittings, valves, float valves, accessories. All needed work to complete the job will be included within the price.","NO.",6,null,0]
[2,"Taps: حنفيات \nSupply of materials, tools and manpower to connect chrome water taps 3/4\". Price of the work shall include water connections. All needed work to complete the job will be included within the price.","NO.",10,null,0]
[3,"Ceramic wash basin:     مغسله                                                                                                        Supply of materials , tools and manpower to install ceramic wash basin with stand, mixer taps , valves , mirror(60x50)cm and all  fittings with complete water connections . All needed work to complete the job will be included within the price.","NO.",9,null,0]
[4,"Stainless steel double bowl sink with aluminum table:سنك للمختبر \nSupply of materials, tools and manpower to install and commission of stainless steel double bowl sink (150x60cm) with aluminum table (H= 90, W= 60cm). Complete with: chrome mixer for sinks, supports, waste outlet, tail piece, P-trap chrome, chrome plated 14mm and required parts for the water supply line. All needed work to complete the job will be included within the price.","M.l",2,null,0]
[5,"Eastern toilet:مقعد غربي\nSupply of materials, tools and manpower to remove the damaged eastern toilet pan and to install new ceramic eastern toilet. Including siphon(flush tank),  gully trap Ø100mm (4\"), flexible hose and water connections. All needed work to complete the job will be included within the price.","NO.",6,null,0]
[6,"Roof Drain pipes (4\"):انابيب تصريف مياه الامطار \nSupply of materials, tools and manpower to install new galvanized steel pipes 4\" (100mm). Including all connections and needed accessories to fix on roof and walls. All needed work to complete the job will be included within the price. See attached drawing.","M.L",27,null,0]
[7,"PVC pipe 4\" (Ø 100mm):انابيب مجاري\nSupply, installation, testing and commissioning of PVC 4\"(100mm) 6 bar for drainage and ventilation pipes down to manholes with all required fittings including excavation, back filling, incasing with sulphate resistant cement concrete and roof vent caps. All needed works to complete the job, will be included within the price.","M.L",130,null,0]
[8,"PPR pipes(3/4\"):انابيب ماء\nSupply and install PPR pipes (3/4)” diameter.  The price includes all fittings and accessories, excavation, backfilling, isolate all hot water pipes by using arm flex and thermal tape and concreting 10cm around the pipes. All needed work to complete the job will be included within the price.","M.L",220,null,0]
[9,"PPR pipes(1\"):انابيب ماء \nSupply and install PPR pipes (1)” diameter.  The price includes all fittings and accessories, excavation, backfilling, isolate all hot water pipes by using arm flex and thermal tape and concreting 10cm around the pipes. All needed work to complete the job will be included within the price.","M.L",120,null,0]
[10,"Mixer taps :   خلاط                                                                                                                         Supply of  materials, tools and manpower to install mixer taps , locks and all  accessories with complete water connections. All needed work to complete the job will be included within the price.","NO.",4,null,0]
[11," Manholes: منهول\nSupply of materials and construction of manholes of different depths with different internal dimensions (as following)using  concrete(C25) for walls and base. The price includes excavation, crushed stone, plain concrete, walls, plastering both sides, &  cast iron covers. See attached drawing."]
[null,"A-(40×40)cm.","NO.",10,null,0]
[null,"B-(50×50)cm.","NO.",4,null,0]
[12,"Septic Tank:خزان التعفين\nSupply of materials, tools and manpower to build septic tank of internal dimension (L=6.0m, W=3.0m and H=2.5m). The price includes:\n1-Soil excavations in any types of soil.\n2-Provide a layer of crushed stones 10cm under the foundation concrete.\n3-Casting (25cm) plain concrete for the foundation using (C25Mpa) Concrete and using sulphate resistant cement.\n4-Build  the walls of 40 cm width with solid blocks (15x20x40cm) and cement mortar (1:3).\n5-Casting reinforced concrete slab (20cm) with two layers of 12mmØ spaced @20cm both directions.\n6-Installation of two  manhole steel covers of (60 x 60 )cm.\n7-Supplying maintenance ladders. \n8-Plastering of the interior and exterior walls with two layers of cement plastering 20mm thickness. The price includes a layer of cement splash dash.\nAll needed work to complete the job will be included within the price. See attached drawing.","NO.",1,null,0]
[null,"SUB TOTAL FOR SANITARY WORKS ",null,null,null,{"$f":"SUM(F81:F94)","v":0}]
["C","Electrical Works"]
[1,"Main Distribution Boar:    بورد كهرباء رئيسي                                                                                           Supply, establish, connect, and commissioning of main distribution board 1*0.8*0.3 m with two out doors and suitable base  with components: steel Container consists of Circuit breaker MCCB, 3 poles 400 Amp No.1 ,Circuit breaker MCCB, 3 poles 250 Amp No.2 , and 3 Circuit breaker MCCB, 3 poles 100 Amp with all accessories, digital multi‐meter sets (Amp and Volt), selector switch, indicating lamps, push buttons, under/over voltage & phase failure protection with all required connection cables, bus‐bar with 5 parties 400A (3 ph., connection & earth) , materials and accessories such as , terminals, etc. All contents must be from equable reputed origin to implement the work accurately & properly. All needed work to complete the job will be included within the price.                                                                                                                                             ","NO.",1,null,0]
[2,"Sub Distribution Board:     بورد كهرباء فرعي                                                                                        Supply, establish, connect, and commission of new sub distribution board  in steel box, isolated type, 36 circuits min. 10 - 32 Amp for each circuit. All contents must be from equable reputed origin with all accessories & requirements. All needed work to complete the job will be included within the price.     ","NO.",2,null,{"$f":"D98*E98","v":0}]
[3,"Electrical cable:كيبل كهربائي\nSupply and connect the cable of low tension type Armed(PVC/SWA/PVC), size (4*25)mm2 to connect and feed the  sub distribution boards, the work includes using Cable Repair Sleeves- heat shrink joints to connect between two cables, fixing them on the walls or pulling the cable underground using PVC conduits or galvanized tray cable (20x10)cm fixed on the ceiling.\n\n\n","M.L.",100,null,0]
[4,"Electrical Building Connecting:         كيبل كهربائي                                                                                  Provision of materials, tools, manpower to connect the building with main electrical network by electrical cable low voltage type Armed(PVC/SWA/PVC) size (4×95)mm.The price includes excavating the earth 40 cm deep and 20cm width and passing the cables through plastic pipe inside and outside the building. All needed work to complete the job will be included within the price. ","M.L.",50,null,0]
[5,"Wiring 1.5mm2.with Switch:                                                                                                        Supply materials and manpower to install and connection and test electrical point light, Exhaust air fan and fan by using 1.5mm2 wire passing through 2.5mm.plastic pipe with switch and all connection and accessories. All needed work to complete the job will be included within the price.","Point",155,null,0]
[6,"Wiring 2.5mm2.with Switch13A:                                                                                                  Supply materials and manpower to install and connection and test electrical socket switch 13A using 2.5mm2 wire passing through 2.5mm.plastic pipe with switch and connection earth and all connections and accessories. All needed work to complete the job will be included within the price. ","Point",145,null,0]
[7,"Wiring 4mm2.with Switch15A:                                                                                                    Supply materials and manpower to install and connection and test electrical socket switch 15A by using 4mm2 wire passing through 2.5mm.plastic pipe  with switch and connection earth and all connections and accessories. All needed work to complete the job will be included within the price.","Point",35,null,0]
[8,"Wiring 6mm2.with Switch32A:                                                                                                    Supply materials and manpower to install , connect and test electrical switch 32A by using 6mm2 wire passing through 2.5mm.plastic pipe with switch and connection earth and all connections and accessories. All needed work to complete the job will be included within the price. ","Point",30,null,0]
[9,"LED Panel fixture:                \nSupplying ,installing, fixing, testing and commissioning of prewired 120W - LED Panel 600mm x 600mm  , color temperature 6500K , lumens 3500ml, include connecting with single way lighting switch (6A) and wiring with 1.0 kV grade, 2x1.5mm² PVC insulated copper wires laid inside  PVC pipe ( 20mm dia) with 6 A switches with all accessories. The price includes supplying,installing,connecting,laying and commissioning drilling, cutting  to complete works as required. ","NO.",115,null,0]
[10,"External Lighting:                                                                                                                     Provision of materials and work to supply and install external light weatherproof outdoor led type (18 W ) economic bulb light complete with frame, the work includes necessary wiring (2 X 1.5 mm2) and switch  with all accessories needed to complete the work.","NO.",35,null,0]
[11,"Projector LED Light 400W:\nSupplying , Installing , connection ,and commissioning of LED light projector  230V, 400 watt, includes wiring with 1.0 kV grade, PVC insulated copper wire (2x1.5mm²), laid through PVC conduit pipe (20 mm dia)/cable tray and connecting with contactor and photo cell with all accessories. The price includes supplying, installing, connecting, laying and commissioning drilling, cutting  to complete works as required.. ","NO.",5,null,0]
[12,"Suspended Ceiling Fan:                                                                                                            Provision of materials and work to supply and install of brand new electrical suspended ceiling fan from equable reputed origin, to be fixed with the ceiling , work includes power cable of 2x1.5mm2 with accessories. All needed work to complete the job will be included within the price.   ","NO.",35,null,0]
[13,"Exhaust Fan12in.:                                                                                                                     Provision of material and work to supply, install, connect and operate exhaust fan12 in from equable reputed origin, The work includes all the required wiring, cable 2x1.5mm and fixation. All needed work to complete the job will be included within the price.   ","NO.",2,null,0]
[14,"Exhaust Fan6in.:                                                                                                                       Provision of material and work to supply, install, connect and operate exhaust fan 6 in from equable reputed origin, The work includes all the required wiring, cable 2x1.5mm and fixation. All needed work to complete the job will be included within the price.  ","NO.",8,null,0]
[15," Refrigerator:                                                                                                                               Supply and install a new refrigerator 12 cubic feet from equable reputed origin,  with electrical voltage protection and all accessories. All needed work to complete the job will be included within the price.  (Ref compliance sheet )","NO.",2,null,0]
[16,"Stainless Steel water cooler:                                 \nSupplying, installing, commissioning stainless steel electrical water-cooler with three taps with water connections,100 lts, minimum 0.75 HP, R410a inert gas includes wiring/connecting with 1.0 kV grade 2*2.5mm² PVC insulated copper cable/wires laid inside existing concealed PVC pipe and if required laid through new surface PVC pipe (20 mm dia) with all accessories. The price includes supplying,installing,connecting,laying, drilling & cutting ( concrete wall if required ) and commissioning to complete works as required.    ","NO.",2,null,0]
[17,"Electrical Water Heater (Geyser) : \nSupply, install,  connect, and commission electrical heater 120 Liter capacity 3 kW, with complete fittings & accessories includes wiring/connecting with 1.0 kV grade 3*4 mm² PVC insulated copper cable/wires laid inside existing concealed PVC pipe and if required laid through new surface PVC pipe (20 mm dia) with all accessories. The price includes supplying,installing,connecting,laying, drilling & cutting ( concrete wall if required ) and commissioning to complete works as required.  (Ref compliance sheet )  ","NO.",9,null,0]
[18,"Split Unit Air-Conditioning (4 ton):                  \nSupply, install , connect and commission  wall mounted Split unit Air-conditioning (Cool & Heat) 4  ton.(48,000 btuh), as per Technical specification and Type of compressor T3, Type of refri. gas ( R410a) includes wiring/connecting with 1.0 kV grade 3*4mm² PVC insulated copper cable/wires laid inside existing concealed PVC pipe and if required laid through new surface PVC pipe (20 mm dia) with 25 A switches with all accessories. The price includes supplying,installing,connecting,laying, drilling & cutting ( concrete wall if required ) and commissioning to complete works as required. (Ref compliance sheet )","No.",6,null,0]
[19,"Split Unit Air-Conditioning (1.5 ton):                  \nSupply, install , connect and commission  wall mounted Split unit Air-conditioning (Cool & Heat) 1.5  ton.(18,000 btuh), as per Technical specification and Type of compressor T3, Type of refri. gas ( R410a) includes wiring/connecting with 1.0 kV grade 3*4mm² PVC insulated copper cable/wires laid inside existing concealed PVC pipe and if required laid through new surface PVC pipe (20 mm dia) with 25 A switches with all accessories. The price includes supplying,installing,connecting,laying, drilling & cutting ( concrete wall if required ) and commissioning to complete works as required. (Ref compliance sheet )","NO.",6,null,0]
[20," Water Pump:                                                                                                                           Provision of material and work to supply, install and operate a new water pump of 1 hp from equable reputed origin; 750 W, Max.H=40 m, Q=36 liter/min, 220 V, 50 Hz, 2850 RPM. The work includes all needed piping, gate valve, unions, non-return valves & cable of 3X2.5mm, electrical wirings and earth connection, control panel to switching between in use and stand by pump, to be mounted on concrete with protection steel cage. All needed work to complete the job will be included within the price. (Ref compliance sheet )","NO.",2,null,0]
[21,"Steel Box:                                                                                                                                     Supply materials , tools to fix and install (50*60)cm new steel box with cover plate from top with door fixed on concrete base 60*70 cm and thickness 20cm with oil paint. All needed work to complete the job will be included within the price.","NO.",2,null,0]
[22,"Generator:                                                                                                                               Provision of material and work to supply, install, connect and operate brand new generator from equable reputed origin; sound-proof, of prime rate power (100) kVA with ATS. The work includes transportation, loading, unloading to site with all required electrical cabling connections, operational materials e.g. batteries, oil, filters, etc., with testing and operating with electrical board of building by electrical cable low voltage type Armed(PVC/SWA/PVC) size (4x50mm2) length 40m & circuit breaker400 Amp. with automatic change over All needed work to complete the job will be included within the price. See compliance sheet attached","NO.",1,null,{"$f":"D118*E118","v":0}]
[23,"Transformer                                                                                                                                  Supply , install , test and commission complete power station transformer comprising the following:-11/0.4 kV DYN11 oil filled transformer as specified.250kVA power capacity frequency 50HZ 3ph (onan) type of cooling , Link Switch and Link Fuse according to specific (IEC947-3), with all necessary connections for use on the 11KV incoming cable,All metering and instrumentation equipment, the necessary cables and connections with the transformer, required accessories as per Ministry of Electricity standards D26, requirements & approvals and with All needed work to complete  a good work according to site engineer. See compliance sheet attached","NO",1,null,{"$f":"D119*E119","v":0}]
[24," Supply electric iron pole  high tension(11m) with digging 1.5 m depth to install the electricity poles and then supply satin mold (FF) with dimensions (0.6 × 0.6 × 0.3 m) for the cast of bases for poles depth (1.8 m) with support the transformer by a U-channel base and anchored by a poles  & all requirements  to complete a good work according to site engineer ","NO",2,null,{"$f":"D120*E120","v":0}]
[25,"Supplying, laying, connecting, checking and running  low voltage cable  (3x240  120)XLPE/PVC)  mm2 from  transformer to   main switch in  & all requirements  to complete a good work according to site engineer","ML",10,null,0]
[26,"Supplying, laying, connecting, checking and running low voltage  cable  (3x150  95)XLPE/PVC)  mm2 from main switch  to control cabinet in compact unit with all requirements  to complete a good work according to site engineer","ML",20,null,0]
[27,"distribution boards                                                                                                                       Supply, install, connect and commission main distribution boards including enclosure (MCCB)  (3x 400) Amp according to specific(IEC947-2) busbars and other needed accessories & all requirements  to complete a good work according to site engineer instructions ","NO",1,null,0]
[28,"Lighting Sign Board:                                                                                                                    Supply materials , tools to install lighting sign board with dimensions (3.0×1.5) m.All needed work to complete the job will be included within the price.","NO.",1,null,{"$f":"D124*E124","v":0}]
[30,"Earthing System:                                                                                                                          Supply, install and connect earthling system for the building consists of three copper rods , the length of each one of them 1.5 m and diameter 16 mm, connected together by main board and generator by copper wire of (1 x35) mm2 to form a triangle shape ,the side length it 3 m and 2 m deep; Interred at a depth of 2m by salt and coal up to a wet area. All needed work to complete the job will be included within the price.","L.S.",1,null,{"$f":"D125*E125","v":0}]
[null,"SUB TOTAL FOR Electrical WORKS ",null,null,null,{"$f":"SUM(F97:F125)","v":0}]
["#","Fire and signs","Unit","Qty","Price $","Total $"]
[1,"Permanent signage:\nProvision of materials, tools, manpower to  install permanent signage (60cm x 40cm), printed on white aluminum composite (trade name – Dibond) to be placed in a prominent position at the main entry door of the site, at eye level. and all requirements to complete the job.","Ea.",1,null,{"$f":"D128*E128","v":0}]
[2,"Temporary signage:\nProvision of materials, tools, manpower to  install temporary signage (W 190cm x H 90cm) printed on mounted plastic sheeting composite (trade name – Dibond) fixed on tow steel legs (3” steel pipe diameter, 2m high) and all requirements to complete the job.","Ea.",1,null,{"$f":"D129*E129","v":0}]
[3," Fire Extinguisher \nSupply materials , tools to fix and install fire extinguishers, powder type (10Kg) capacity and with training the end user staff for using steps.","Ea.",10,null,{"$f":"D130*E130","v":0}]
[null,"Sub-total (Fire and signs)",null,null,null,{"$f":"SUM(F128:F130)","v":0}]
[null,"Total Cost of Reconstruction Works in US $",null,null,null,{"$f":"SUM(F131,F126,F95,F79,F73)","v":0}]
[]
[]
[]
[null,"Name of Bidder:         ______________________________"]
[]
[null,"Authorized signature: ______________________________"]
[]
[null,"Functional Title:         ______________________________"]
[]
[null,"Company:                   ______________________________"]
[]
[null,"Date:                          ______________________________                          "]